[Event "*** SCC Grand Prix: Titled Tuesday Blitz"]
[Site "Chess.com"]
[Date "2020.08.04"]
[Round "2"]
[White "alexrustemov"]
[Black "Caterpiller35"]
[Result "1-0"]
[WhiteElo "2743"]
[BlackElo "2383"]
[TimeControl "180+1"]
[EndTime "14:02:57 PDT"]
[Termination "alexrustemov won on time"]

1. d4 {[%clk 0:03:00.9]} 1... Nf6 {[%clk 0:02:59.4]} 2. Nf3 {[%clk 0:02:56.6]}
2... e6 {[%clk 0:02:59.6]} 3. c4 {[%clk 0:02:56.1]} 3... Bb4+ {[%clk 0:02:59.4]}
4. Bd2 {[%clk 0:02:55.9]} 4... Qe7 {[%clk 0:02:59.2]} 5. g3 {[%clk 0:02:56]}
5... Nc6 {[%clk 0:02:59.1]} 6. Nc3 {[%clk 0:02:56.2]} 6... d6 {[%clk 0:02:57.8]}
7. Bg2 {[%clk 0:02:55.5]} 7... O-O {[%clk 0:02:57.4]} 8. O-O {[%clk 0:02:55.1]}
8... e5 {[%clk 0:02:57.4]} 9. dxe5 {[%clk 0:02:45.2]} 9... Nxe5 {[%clk
0:02:53.9]} 10. Nd5 {[%clk 0:02:43.1]} 10... Nxd5 {[%clk 0:02:51.5]} 11. cxd5
{[%clk 0:02:42]} 11... Bc5 {[%clk 0:02:51.6]} 12. Nxe5 {[%clk 0:02:33.1]} 12...
dxe5 {[%clk 0:02:42.4]} 13. Rc1 {[%clk 0:02:29.9]} 13... Bb6 {[%clk 0:02:33.7]}
14. Qb3 {[%clk 0:02:24.3]} 14... Rd8 {[%clk 0:02:23.9]} 15. Bb4 {[%clk
0:02:22.4]} 15... Qf6 {[%clk 0:02:20.3]} 16. Bc5 {[%clk 0:02:20.8]} 16... Bg4
{[%clk 0:02:11.8]} 17. e3 {[%clk 0:02:11.5]} 17... Bf3 {[%clk 0:02:06.3]} 18.
Bxb6 {[%clk 0:02:08.8]} 18... cxb6 {[%clk 0:01:59.1]} 19. e4 {[%clk 0:02:05.3]}
19... Bxg2 {[%clk 0:01:52.8]} 20. Kxg2 {[%clk 0:02:06.2]} 20... Rd7 {[%clk
0:01:52.9]} 21. Rc4 {[%clk 0:02:03.4]} 21... Rad8 {[%clk 0:01:50.2]} 22. Rfc1
{[%clk 0:02:03.4]} 22... h5 {[%clk 0:01:50.5]} 23. Qf3 {[%clk 0:02:02.6]} 23...
Qg6 {[%clk 0:01:46.8]} 24. Rc8 {[%clk 0:01:46.2]} 24... Rxc8 {[%clk 0:01:42.5]}
25. Rxc8+ {[%clk 0:01:45.5]} 25... Kh7 {[%clk 0:01:42.8]} 26. h3 {[%clk
0:01:42.9]} 26... b5 {[%clk 0:01:22.9]} 27. Re8 {[%clk 0:01:40.1]} 27... f6
{[%clk 0:00:48.9]} 28. Rc8 {[%clk 0:01:36.9]} 28... a6 {[%clk 0:00:47.2]} 29. g4
{[%clk 0:01:33.5]} 29... hxg4 {[%clk 0:00:34.5]} 30. hxg4 {[%clk 0:01:34.4]}
30... Qg5 {[%clk 0:00:28.5]} 31. Qf5+ {[%clk 0:01:31.2]} 31... Qxf5 {[%clk
0:00:28]} 32. gxf5 {[%clk 0:01:32.1]} 32... g6 {[%clk 0:00:26]} 33. fxg6+ {[%clk
0:01:29.8]} 33... Kxg6 {[%clk 0:00:26.9]} 34. Kg3 {[%clk 0:01:25.2]} 34... f5
{[%clk 0:00:25.9]} 35. f3 {[%clk 0:01:25]} 35... f4+ {[%clk 0:00:16.1]} 36. Kg4
{[%clk 0:01:23]} 36... Rg7 {[%clk 0:00:16.2]} 37. Rf8 {[%clk 0:01:18.3]} 37...
Rc7 {[%clk 0:00:09.9]} 38. Re8 {[%clk 0:01:13.5]} 38... Rc2 {[%clk 0:00:09.3]}
39. Re6+ {[%clk 0:01:12.3]} 39... Kf7 {[%clk 0:00:08.7]} 40. Rxe5 {[%clk
0:01:06.8]} 40... Rxb2 {[%clk 0:00:08.8]} 41. Rh5 {[%clk 0:01:00.9]} 41... Rxa2
{[%clk 0:00:07.5]} 42. e5 {[%clk 0:01:00.6]} 42... Rd2 {[%clk 0:00:06.5]} 43.
Rh7+ {[%clk 0:00:55]} 43... Kg6 {[%clk 0:00:05.9]} 44. Rd7 {[%clk 0:00:52.7]}
44... b4 {[%clk 0:00:05.5]} 45. Kxf4 {[%clk 0:00:46.6]} 45... b5 {[%clk
0:00:04.2]} 46. Rd6+ {[%clk 0:00:43.3]} 46... Kf7 {[%clk 0:00:03.8]} 47. Rxa6
{[%clk 0:00:43.3]} 47... b3 {[%clk 0:00:03.4]} 48. Ra3 {[%clk 0:00:40.8]} 48...
b2 {[%clk 0:00:02.2]} 49. Rb3 {[%clk 0:00:40.8]} 1-0

[Event "*** SCC Grand Prix: Titled Tuesday Blitz"]
[Site "Chess.com"]
[Date "2020.08.04"]
[Round "2"]
[White "crescentmoon2411"]
[Black "RitvarsReimanis"]
[Result "1-0"]
[WhiteElo "2793"]
[BlackElo "2508"]
[TimeControl "180+1"]
[EndTime "14:02:59 PDT"]
[Termination "crescentmoon2411 won on time"]

1. c4 {[%clk 0:03:00.9]} 1... e6 {[%clk 0:02:59.5]} 2. Nc3 {[%clk 0:03:00.7]}
2... d5 {[%clk 0:03:00.4]} 3. d4 {[%clk 0:03:00.5]} 3... Nf6 {[%clk 0:03:00.8]}
4. cxd5 {[%clk 0:03:00.5]} 4... exd5 {[%clk 0:03:01.7]} 5. Bg5 {[%clk
0:02:59.2]} 5... c6 {[%clk 0:03:02.6]} 6. e3 {[%clk 0:02:59.6]} 6... Nbd7 {[%clk
0:03:02.9]} 7. Bd3 {[%clk 0:02:57.8]} 7... Be7 {[%clk 0:03:03.4]} 8. Qc2 {[%clk
0:02:54.7]} 8... O-O {[%clk 0:03:04]} 9. Nf3 {[%clk 0:02:43.8]} 9... Re8 {[%clk
0:03:04]} 10. h3 {[%clk 0:02:34.3]} 10... Nf8 {[%clk 0:03:04.4]} 11. O-O {[%clk
0:02:31.4]} 11... Ng6 {[%clk 0:03:04]} 12. Rfe1 {[%clk 0:02:27.6]} 12... Ne4
{[%clk 0:03:02.2]} 13. Bxe4 {[%clk 0:02:00.7]} 13... Bxg5 {[%clk 0:02:57]} 14.
Bf5 {[%clk 0:01:55.3]} 14... Be7 {[%clk 0:02:51.1]} 15. a3 {[%clk 0:01:44.7]}
15... a5 {[%clk 0:02:50.4]} 16. Bxc8 {[%clk 0:01:37.7]} 16... Rxc8 {[%clk
0:02:51.3]} 17. Reb1 {[%clk 0:01:28.6]} 17... Ra8 {[%clk 0:02:48]} 18. Na4
{[%clk 0:01:28.3]} 18... Nf8 {[%clk 0:02:44.9]} 19. b4 {[%clk 0:01:24]} 19...
axb4 {[%clk 0:02:25.6]} 20. axb4 {[%clk 0:01:24.9]} 20... Bd6 {[%clk 0:01:56.3]}
21. Nc5 {[%clk 0:01:23.8]} 21... Qb6 {[%clk 0:01:42.9]} 22. Rxa8 {[%clk
0:01:19.3]} 22... Rxa8 {[%clk 0:01:43.8]} 23. b5 {[%clk 0:01:17.3]} 23... cxb5
{[%clk 0:01:27.4]} 24. Qb3 {[%clk 0:01:11.3]} 24... Bxc5 {[%clk 0:01:21.3]} 25.
dxc5 {[%clk 0:01:12.2]} 25... Qxc5 {[%clk 0:01:22.2]} 26. Qxb5 {[%clk
0:01:10.7]} 26... Qxb5 {[%clk 0:00:43.2]} 27. Rxb5 {[%clk 0:01:11.6]} 27... Rb8
{[%clk 0:00:42.7]} 28. Nd4 {[%clk 0:01:11.5]} 28... b6 {[%clk 0:00:35.1]} 29.
Rxd5 {[%clk 0:01:11.3]} 29... Ne6 {[%clk 0:00:33.1]} 30. Nb5 {[%clk 0:01:06.7]}
30... Rd8 {[%clk 0:00:26.7]} 31. Rxd8+ {[%clk 0:00:54]} 31... Nxd8 {[%clk
0:00:27.6]} 32. e4 {[%clk 0:00:51.5]} 32... Kf8 {[%clk 0:00:24.5]} 33. f4 {[%clk
0:00:51.3]} 33... Ne6 {[%clk 0:00:19.4]} 34. g3 {[%clk 0:00:51.2]} 34... Nc5
{[%clk 0:00:19.7]} 35. e5 {[%clk 0:00:50.4]} 35... g5 {[%clk 0:00:13.1]} 36. Kf2
{[%clk 0:00:49.3]} 36... gxf4 {[%clk 0:00:13.5]} 37. gxf4 {[%clk 0:00:50.2]}
37... f6 {[%clk 0:00:13.4]} 38. Ke3 {[%clk 0:00:48.5]} 38... fxe5 {[%clk
0:00:13]} 39. fxe5 {[%clk 0:00:49.4]} 39... Ke7 {[%clk 0:00:09.6]} 40. Kf4
{[%clk 0:00:46.5]} 40... Ke6 {[%clk 0:00:06.8]} 41. Nc7+ {[%clk 0:00:45.8]}
41... Kd7 {[%clk 0:00:06.1]} 42. Nd5 {[%clk 0:00:45.7]} 42... b5 {[%clk
0:00:05.3]} 43. Kf5 {[%clk 0:00:44.8]} 43... Kc6 {[%clk 0:00:01.2]} 44. Nb4+
{[%clk 0:00:41.4]} 44... Kd7 {[%clk 0:00:01.6]} 45. h4 {[%clk 0:00:40.9]} 45...
Ke7 {[%clk 0:00:01.9]} 46. Nd5+ {[%clk 0:00:39.3]} 46... Kd7 {[%clk 0:00:02.3]}
47. Kf6 {[%clk 0:00:39.2]} 47... Ne4+ {[%clk 0:00:02.2]} 48. Kf7 {[%clk
0:00:39.5]} 48... Nc5 {[%clk 0:00:02.1]} 49. h5 {[%clk 0:00:38.6]} 49... Ne6
{[%clk 0:00:01.7]} 50. Nf6+ {[%clk 0:00:36.2]} 1-0

[Event "*** SCC Grand Prix: Titled Tuesday Blitz"]
[Site "Chess.com"]
[Date "2020.08.04"]
[Round "2"]
[White "dalmatinac101"]
[Black "VladaSviridova"]
[Result "1-0"]
[WhiteElo "2702"]
[BlackElo "2179"]
[TimeControl "180+1"]
[EndTime "14:03:00 PDT"]
[Termination "dalmatinac101 won by resignation"]

1. Nf3 {[%clk 0:03:00.6]} 1... d5 {[%clk 0:02:59.9]} 2. g3 {[%clk 0:03:00.8]}
2... Nf6 {[%clk 0:02:59.8]} 3. Bg2 {[%clk 0:03:01.2]} 3... c6 {[%clk 0:03:00]}
4. d3 {[%clk 0:03:01.1]} 4... Bf5 {[%clk 0:02:59.9]} 5. Nbd2 {[%clk 0:03:00.5]}
5... e6 {[%clk 0:03:00.1]} 6. Nh4 {[%clk 0:03:00.6]} 6... Bg4 {[%clk 0:02:53.2]}
7. h3 {[%clk 0:03:00.6]} 7... Bh5 {[%clk 0:02:53.3]} 8. c4 {[%clk 0:03:00.4]}
8... Nbd7 {[%clk 0:02:51.1]} 9. g4 {[%clk 0:02:57.7]} 9... Bg6 {[%clk
0:02:47.2]} 10. Nxg6 {[%clk 0:02:57.4]} 10... hxg6 {[%clk 0:02:46.8]} 11. cxd5
{[%clk 0:02:55.7]} 11... cxd5 {[%clk 0:02:42]} 12. O-O {[%clk 0:02:49.8]} 12...
Bd6 {[%clk 0:02:41.8]} 13. e4 {[%clk 0:02:46.5]} 13... dxe4 {[%clk 0:02:13.9]}
14. dxe4 {[%clk 0:02:47.4]} 14... Qc7 {[%clk 0:02:13.4]} 15. Re1 {[%clk
0:02:32.1]} 15... Ne5 {[%clk 0:01:53]} 16. Qa4+ {[%clk 0:02:22.5]} 16... Qd7
{[%clk 0:01:47.1]} 17. Qxd7+ {[%clk 0:02:20.8]} 17... Nfxd7 {[%clk 0:01:46]} 18.
Nb3 {[%clk 0:02:18.1]} 18... Ke7 {[%clk 0:01:18.5]} 19. Rd1 {[%clk 0:02:12.3]}
19... Nc4 {[%clk 0:00:59]} 20. Bf1 {[%clk 0:02:00.6]} 20... Rac8 {[%clk
0:00:55.1]} 21. f4 {[%clk 0:01:45.6]} 21... e5 {[%clk 0:00:50.5]} 22. f5 {[%clk
0:01:43.5]} 22... gxf5 {[%clk 0:00:48.7]} 23. exf5 {[%clk 0:01:37.8]} 23... f6
{[%clk 0:00:47.8]} 24. Kg2 {[%clk 0:01:22.5]} 24... b6 {[%clk 0:00:39.1]} 25.
Bxc4 {[%clk 0:01:07.8]} 25... Rxc4 {[%clk 0:00:38.5]} 26. Be3 {[%clk 0:01:08.3]}
26... Rhc8 {[%clk 0:00:32.8]} 27. Rac1 {[%clk 0:01:07]} 27... Rxc1 {[%clk
0:00:32.8]} 28. Rxc1 {[%clk 0:01:06.5]} 28... Rxc1 {[%clk 0:00:32.6]} 29. Nxc1
{[%clk 0:00:59.7]} 29... Nc5 {[%clk 0:00:31]} 30. Bxc5 {[%clk 0:00:58.1]} 30...
Bxc5 {[%clk 0:00:30.2]} 31. Kf3 {[%clk 0:00:58.1]} 31... Kd6 {[%clk 0:00:29.8]}
32. Ke4 {[%clk 0:00:57.9]} 32... Bd4 {[%clk 0:00:28.9]} 33. Nd3 {[%clk 0:00:56]}
33... a5 {[%clk 0:00:27.8]} 34. a4 {[%clk 0:00:53.9]} 34... Bg1 {[%clk
0:00:19.3]} 35. h4 {[%clk 0:00:53.8]} 35... Bd4 {[%clk 0:00:15.3]} 36. g5 {[%clk
0:00:53.9]} 36... fxg5 {[%clk 0:00:14.5]} 37. hxg5 {[%clk 0:00:53.8]} 37... Ke7
{[%clk 0:00:12.3]} 38. Kd5 {[%clk 0:00:45.8]} 38... Be3 {[%clk 0:00:12.2]} 39.
g6 {[%clk 0:00:37.1]} 39... Kf6 {[%clk 0:00:10.9]} 40. Ke4 {[%clk 0:00:37.3]}
40... Bd4 {[%clk 0:00:10.5]} 41. b4 {[%clk 0:00:34.7]} 41... axb4 {[%clk
0:00:09.8]} 42. Nxb4 {[%clk 0:00:34.6]} 42... Bc5 {[%clk 0:00:09.1]} 43. Nd5+
{[%clk 0:00:34]} 43... Kg5 {[%clk 0:00:09.1]} 44. Kxe5 {[%clk 0:00:34.9]} 44...
Kg4 {[%clk 0:00:08.2]} 45. f6 {[%clk 0:00:28]} 45... gxf6+ {[%clk 0:00:08.4]}
46. Nxf6+ {[%clk 0:00:28.8]} 46... Kg5 {[%clk 0:00:07.4]} 47. g7 {[%clk
0:00:29.7]} 47... Kh6 {[%clk 0:00:05.2]} 48. g8=Q {[%clk 0:00:28.2]} 1-0

[Event "*** SCC Grand Prix: Titled Tuesday Blitz"]
[Site "Chess.com"]
[Date "2020.08.04"]
[Round "2"]
[White "DaggiGretarsson"]
[Black "Jospem"]
[Result "0-1"]
[WhiteElo "2610"]
[BlackElo "2933"]
[TimeControl "180+1"]
[EndTime "14:03:06 PDT"]
[Termination "Jospem won by checkmate"]

1. d4 {[%clk 0:03:00.1]} 1... Nf6 {[%clk 0:02:59.2]} 2. c4 {[%clk 0:03:00]} 2...
e6 {[%clk 0:02:59.2]} 3. Nc3 {[%clk 0:03:00]} 3... Bb4 {[%clk 0:02:58.4]} 4. Qc2
{[%clk 0:03:00.1]} 4... d6 {[%clk 0:02:58.3]} 5. Nf3 {[%clk 0:02:53.7]} 5...
Nbd7 {[%clk 0:02:57.7]} 6. a3 {[%clk 0:02:52.2]} 6... Bxc3+ {[%clk 0:02:57.8]}
7. Qxc3 {[%clk 0:02:52.5]} 7... b6 {[%clk 0:02:58.5]} 8. Bg5 {[%clk 0:02:47.3]}
8... Bb7 {[%clk 0:02:57.9]} 9. Nd2 {[%clk 0:02:47]} 9... h6 {[%clk 0:02:53]} 10.
Bh4 {[%clk 0:02:46.3]} 10... c5 {[%clk 0:02:51.8]} 11. f3 {[%clk 0:02:39.4]}
11... Rc8 {[%clk 0:02:15.2]} 12. e3 {[%clk 0:02:29.1]} 12... O-O {[%clk
0:02:14.2]} 13. Be2 {[%clk 0:02:24.7]} 13... d5 {[%clk 0:01:57.3]} 14. cxd5
{[%clk 0:02:02.6]} 14... Nxd5 {[%clk 0:01:45.6]} 15. Bxd8 {[%clk 0:02:01.6]}
15... Nxc3 {[%clk 0:01:46.2]} 16. Be7 {[%clk 0:01:49.3]} 16... Rfe8 {[%clk
0:01:45.9]} 17. bxc3 {[%clk 0:01:47.6]} 17... Rxe7 {[%clk 0:01:45.9]} 18. Nc4
{[%clk 0:01:38.4]} 18... Nf6 {[%clk 0:01:32.7]} 19. Nd6 {[%clk 0:01:32.2]} 19...
Rd8 {[%clk 0:01:32.6]} 20. Nxb7 {[%clk 0:01:28.5]} 20... Rxb7 {[%clk 0:01:33.5]}
21. Ba6 {[%clk 0:01:24.3]} 21... Rc7 {[%clk 0:01:32.6]} 22. Kf2 {[%clk
0:01:17.5]} 22... Kf8 {[%clk 0:01:24.1]} 23. Rhc1 {[%clk 0:01:16]} 23... Ke7
{[%clk 0:01:23.8]} 24. a4 {[%clk 0:01:15.2]} 24... Nd5 {[%clk 0:01:13.2]} 25.
Ke2 {[%clk 0:01:10.9]} 25... f5 {[%clk 0:01:04.9]} 26. g3 {[%clk 0:01:04.4]}
26... Rb8 {[%clk 0:00:50.2]} 27. Kd3 {[%clk 0:00:55.4]} 27... cxd4 {[%clk
0:00:46.6]} 28. exd4 {[%clk 0:00:54.2]} 28... Rd8 {[%clk 0:00:46.4]} 29. Bc4
{[%clk 0:00:47.9]} 29... Rd6 {[%clk 0:00:32.4]} 30. a5 {[%clk 0:00:40.2]} 30...
Kf6 {[%clk 0:00:32.6]} 31. Bxd5 {[%clk 0:00:31.9]} 31... Rxd5 {[%clk 0:00:27.1]}
32. axb6 {[%clk 0:00:31.7]} 32... axb6 {[%clk 0:00:28]} 33. Rcb1 {[%clk
0:00:28.8]} 33... Rc6 {[%clk 0:00:28.4]} 34. Ra6 {[%clk 0:00:27.8]} 34... Rdd6
{[%clk 0:00:28.9]} 35. Rb5 {[%clk 0:00:27.4]} 35... Kg6 {[%clk 0:00:18.4]} 36.
f4 {[%clk 0:00:25.4]} 36... Kf6 {[%clk 0:00:18.7]} 37. h3 {[%clk 0:00:25.1]}
37... g5 {[%clk 0:00:18.3]} 38. c4 {[%clk 0:00:22.2]} 38... Kg6 {[%clk
0:00:17.1]} 39. d5 {[%clk 0:00:21]} 39... exd5 {[%clk 0:00:16.4]} 40. cxd5
{[%clk 0:00:20.6]} 40... Kh5 {[%clk 0:00:14.9]} 41. Kd4 {[%clk 0:00:18.7]} 41...
Rc1 {[%clk 0:00:12.6]} 42. Raxb6 {[%clk 0:00:16.2]} 42... Rd8 {[%clk 0:00:08.1]}
43. Ke5 {[%clk 0:00:15.8]} 43... gxf4 {[%clk 0:00:08.1]} 44. gxf4 {[%clk
0:00:14.5]} 44... Re1+ {[%clk 0:00:08.7]} 45. Kxf5 {[%clk 0:00:13.5]} 45... Re3
{[%clk 0:00:08.1]} 46. d6 {[%clk 0:00:12.7]} 46... Rf8# {[%clk 0:00:08.1]} 0-1

[Event "*** SCC Grand Prix: Titled Tuesday Blitz"]
[Site "Chess.com"]
[Date "2020.08.04"]
[Round "2"]
[White "creativity"]
[Black "ketster"]
[Result "1/2-1/2"]
[WhiteElo "2001"]
[BlackElo "2379"]
[TimeControl "180+1"]
[EndTime "14:03:16 PDT"]
[Termination "Game drawn - insufficient material"]

1. d4 {[%clk 0:03:00.9]} 1... Nf6 {[%clk 0:02:58.8]} 2. c4 {[%clk 0:03:00.5]}
2... e6 {[%clk 0:02:58.9]} 3. Nc3 {[%clk 0:03:00.3]} 3... Bb4 {[%clk 0:02:59]}
4. Qc2 {[%clk 0:03:00]} 4... O-O {[%clk 0:02:58.8]} 5. Nf3 {[%clk 0:02:59.4]}
5... d5 {[%clk 0:02:57.4]} 6. cxd5 {[%clk 0:02:57.9]} 6... exd5 {[%clk
0:02:55.6]} 7. Bg5 {[%clk 0:02:56.1]} 7... h6 {[%clk 0:02:54.2]} 8. Bxf6 {[%clk
0:02:55.9]} 8... Qxf6 {[%clk 0:02:52.9]} 9. e3 {[%clk 0:02:55.2]} 9... c6 {[%clk
0:02:52.4]} 10. Bd3 {[%clk 0:02:50.8]} 10... Bg4 {[%clk 0:02:50.7]} 11. Ne5
{[%clk 0:02:50.1]} 11... Be6 {[%clk 0:02:48]} 12. O-O {[%clk 0:02:45.1]} 12...
Nd7 {[%clk 0:02:42.8]} 13. Nxd7 {[%clk 0:02:41.8]} 13... Bxd7 {[%clk 0:02:40.2]}
14. a3 {[%clk 0:02:41.4]} 14... Bd6 {[%clk 0:02:39.3]} 15. Rfe1 {[%clk
0:02:35.7]} 15... Qh4 {[%clk 0:02:33.3]} 16. g3 {[%clk 0:02:35.2]} 16... Qh5
{[%clk 0:02:27.9]} 17. b4 {[%clk 0:02:22.8]} 17... Qg5 {[%clk 0:02:20.1]} 18. b5
{[%clk 0:02:14.7]} 18... h5 {[%clk 0:02:17.3]} 19. bxc6 {[%clk 0:02:09.8]} 19...
bxc6 {[%clk 0:02:18.2]} 20. Na4 {[%clk 0:02:00.6]} 20... h4 {[%clk 0:02:09.3]}
21. Nc5 {[%clk 0:01:41.3]} 21... Bh3 {[%clk 0:02:04.9]} 22. f4 {[%clk
0:01:32.3]} 22... Qh6 {[%clk 0:01:51.5]} 23. Bf5 {[%clk 0:01:26.2]} 23... hxg3
{[%clk 0:01:46.3]} 24. hxg3 {[%clk 0:01:23.7]} 24... g6 {[%clk 0:01:45.4]} 25.
Bxh3 {[%clk 0:01:20.4]} 25... Qxh3 {[%clk 0:01:46.3]} 26. Qg2 {[%clk 0:01:18]}
26... Qxg2+ {[%clk 0:01:18.7]} 27. Kxg2 {[%clk 0:01:17.2]} 27... Bxc5 {[%clk
0:01:19.5]} 28. dxc5 {[%clk 0:01:16.8]} 28... Rab8 {[%clk 0:01:13.8]} 29. Rab1
{[%clk 0:01:15.2]} 29... f5 {[%clk 0:00:58.2]} 30. Kf3 {[%clk 0:01:14.6]} 30...
Kg7 {[%clk 0:00:55.8]} 31. g4 {[%clk 0:01:13.7]} 31... Kf6 {[%clk 0:00:52.9]}
32. g5+ {[%clk 0:01:13.3]} 32... Kg7 {[%clk 0:00:44.7]} 33. Red1 {[%clk
0:01:12.1]} 33... Rh8 {[%clk 0:00:42.9]} 34. Rb4 {[%clk 0:01:07.8]} 34... a5
{[%clk 0:00:35.3]} 35. Rb6 {[%clk 0:01:06.6]} 35... Rxb6 {[%clk 0:00:29.6]} 36.
cxb6 {[%clk 0:01:06.1]} 36... Rb8 {[%clk 0:00:30.2]} 37. Rb1 {[%clk 0:01:05.7]}
37... Kf7 {[%clk 0:00:28.7]} 38. Ke2 {[%clk 0:01:00.5]} 38... Ke6 {[%clk
0:00:28.9]} 39. Kd3 {[%clk 0:01:00]} 39... Kd6 {[%clk 0:00:29.2]} 40. b7 {[%clk
0:00:55.8]} 40... c5 {[%clk 0:00:27.6]} 41. Rb6+ {[%clk 0:00:55.2]} 41... Kc7
{[%clk 0:00:27.6]} 42. Rxg6 {[%clk 0:00:54.6]} 42... Kxb7 {[%clk 0:00:26.7]} 43.
Rd6 {[%clk 0:00:51.9]} 43... c4+ {[%clk 0:00:25.3]} 44. Kc3 {[%clk 0:00:49.9]}
44... Kc7 {[%clk 0:00:18.7]} 45. Rxd5 {[%clk 0:00:49.4]} 45... Rb3+ {[%clk
0:00:19.4]} 46. Kxc4 {[%clk 0:00:49.4]} 46... Rxa3 {[%clk 0:00:15.4]} 47. Rxf5
{[%clk 0:00:48.5]} 47... Rxe3 {[%clk 0:00:15.9]} 48. g6 {[%clk 0:00:43.3]} 48...
Rg3 {[%clk 0:00:15.6]} 49. Rf7+ {[%clk 0:00:38.6]} 49... Kd6 {[%clk 0:00:16]}
50. g7 {[%clk 0:00:37.8]} 50... Ke6 {[%clk 0:00:15.2]} 51. Ra7 {[%clk
0:00:36.9]} 51... a4 {[%clk 0:00:14.9]} 52. Rxa4 {[%clk 0:00:33.5]} 52... Rxg7
{[%clk 0:00:14.3]} 53. Ra5 {[%clk 0:00:32.8]} 53... Rf7 {[%clk 0:00:13.8]} 54.
f5+ {[%clk 0:00:32]} 54... Rxf5 {[%clk 0:00:13.7]} 55. Rxf5 {[%clk 0:00:31.5]}
55... Kxf5 {[%clk 0:00:14.6]} 1/2-1/2

[Event "*** SCC Grand Prix: Titled Tuesday Blitz"]
[Site "Chess.com"]
[Date "2020.08.04"]
[Round "2"]
[White "Grandmaster2B"]
[Black "Sn00pPawn"]
[Result "1-0"]
[WhiteElo "2382"]
[BlackElo "1948"]
[TimeControl "180+1"]
[EndTime "14:03:18 PDT"]
[Termination "Grandmaster2B won by checkmate"]

1. e4 {[%clk 0:03:00.9]} 1... c5 {[%clk 0:02:59.5]} 2. Nf3 {[%clk 0:03:00.9]}
2... d6 {[%clk 0:02:59.5]} 3. d4 {[%clk 0:03:00.9]} 3... cxd4 {[%clk 0:03:00.4]}
4. Nxd4 {[%clk 0:03:00.6]} 4... Nf6 {[%clk 0:03:01.1]} 5. Nc3 {[%clk 0:03:01]}
5... a6 {[%clk 0:03:01.6]} 6. f3 {[%clk 0:03:01.1]} 6... e5 {[%clk 0:03:00]} 7.
Nb3 {[%clk 0:03:01.4]} 7... Be7 {[%clk 0:02:58.2]} 8. Be3 {[%clk 0:03:01.6]}
8... O-O {[%clk 0:02:57.9]} 9. Qd2 {[%clk 0:03:02.2]} 9... Be6 {[%clk
0:02:57.9]} 10. O-O-O {[%clk 0:03:02.6]} 10... b5 {[%clk 0:02:56.4]} 11. g4
{[%clk 0:03:02.8]} 11... Nbd7 {[%clk 0:02:50.5]} 12. h4 {[%clk 0:03:02.7]} 12...
Nb6 {[%clk 0:02:46.2]} 13. Qf2 {[%clk 0:02:57.2]} 13... Nfd7 {[%clk 0:02:40.2]}
14. Kb1 {[%clk 0:02:51.4]} 14... Nc4 {[%clk 0:02:26]} 15. Bxc4 {[%clk
0:02:50.3]} 15... bxc4 {[%clk 0:02:21]} 16. Nc1 {[%clk 0:02:43.7]} 16... Rb8
{[%clk 0:02:05.5]} 17. Nd5 {[%clk 0:02:34.7]} 17... Re8 {[%clk 0:01:42.7]} 18.
Nxe7+ {[%clk 0:02:22.6]} 18... Qxe7 {[%clk 0:01:43.6]} 19. Ne2 {[%clk
0:02:15.6]} 19... Nc5 {[%clk 0:01:34.6]} 20. Nc3 {[%clk 0:02:05.3]} 20... Qb7
{[%clk 0:01:22.6]} 21. Bc1 {[%clk 0:01:59.8]} 21... Red8 {[%clk 0:01:23]} 22.
Ka1 {[%clk 0:01:42.1]} 22... a5 {[%clk 0:01:20]} 23. Rd2 {[%clk 0:01:08.8]}
23... a4 {[%clk 0:01:03]} 24. a3 {[%clk 0:01:07.4]} 24... Qc6 {[%clk 0:00:49.2]}
25. Rhd1 {[%clk 0:01:04.6]} 25... Rb7 {[%clk 0:00:41.6]} 26. Nd5 {[%clk
0:00:57.3]} 26... Rdb8 {[%clk 0:00:37.6]} 27. Nb4 {[%clk 0:00:54.1]} 27... Rxb4
{[%clk 0:00:26.3]} 28. axb4 {[%clk 0:00:55]} 28... Nb3+ {[%clk 0:00:24.5]} 29.
Kb1 {[%clk 0:00:35.7]} 29... Nxd2+ {[%clk 0:00:22.2]} 30. Qxd2 {[%clk
0:00:35.1]} 30... Rd8 {[%clk 0:00:16.3]} 31. h5 {[%clk 0:00:31.2]} 31... h6
{[%clk 0:00:16.3]} 32. g5 {[%clk 0:00:30.4]} 32... hxg5 {[%clk 0:00:16]} 33.
Qxg5 {[%clk 0:00:31.3]} 33... c3 {[%clk 0:00:15.8]} 34. Qxd8+ {[%clk 0:00:30.1]}
34... Kh7 {[%clk 0:00:15.3]} 35. Qxd6 {[%clk 0:00:11.5]} 35... Qc4 {[%clk
0:00:14.2]} 36. Rd5 {[%clk 0:00:12.1]} 36... Bxd5 {[%clk 0:00:10.2]} 37. Qxd5
{[%clk 0:00:13]} 37... Qe2 {[%clk 0:00:08.4]} 38. bxc3 {[%clk 0:00:09.6]} 38...
Qxf3 {[%clk 0:00:07.5]} 39. Qxe5 {[%clk 0:00:10.2]} 39... f6 {[%clk 0:00:05.4]}
40. Qf5+ {[%clk 0:00:10.5]} 40... Qxf5 {[%clk 0:00:05.7]} 41. exf5 {[%clk
0:00:11.4]} 41... Kg8 {[%clk 0:00:06.1]} 42. b5 {[%clk 0:00:12.2]} 42... Kf7
{[%clk 0:00:06.9]} 43. b6 {[%clk 0:00:13.1]} 43... Ke7 {[%clk 0:00:07.7]} 44. b7
{[%clk 0:00:14]} 44... Kd7 {[%clk 0:00:08.5]} 45. b8=Q {[%clk 0:00:14.9]} 45...
Kc6 {[%clk 0:00:08.4]} 46. Qh8 {[%clk 0:00:15.8]} 46... Kd5 {[%clk 0:00:08.9]}
47. Qxg7 {[%clk 0:00:16.7]} 47... Kc4 {[%clk 0:00:09.5]} 48. h6 {[%clk
0:00:17.3]} 48... Kxc3 {[%clk 0:00:10.4]} 49. h7 {[%clk 0:00:17.6]} 49... Kc4
{[%clk 0:00:11.3]} 50. h8=Q {[%clk 0:00:18.1]} 50... Kb5 {[%clk 0:00:12.2]} 51.
Qb8+ {[%clk 0:00:18.2]} 51... Kc6 {[%clk 0:00:13.1]} 52. Qgc7+ {[%clk
0:00:18.3]} 52... Kd5 {[%clk 0:00:14]} 53. Qbd8+ {[%clk 0:00:15.7]} 53... Ke4
{[%clk 0:00:14.9]} 54. Qce7+ {[%clk 0:00:15]} 54... Kxf5 {[%clk 0:00:15.8]} 55.
Qd5+ {[%clk 0:00:15.6]} 55... Kg4 {[%clk 0:00:16]} 56. Qee4+ {[%clk 0:00:15.7]}
56... Kg3 {[%clk 0:00:16.8]} 57. Qdd3+ {[%clk 0:00:16.4]} 57... Kh2 {[%clk
0:00:16.5]} 58. Qee2+ {[%clk 0:00:17.3]} 58... Kg1 {[%clk 0:00:16.9]} 59. Qdd1#
{[%clk 0:00:15.9]} 1-0